[Event "Masters Tournament (MTO)"]
[Site "Biel, Switzerland"]
[Date "2026.07.21"]
[Round "8.10"]
[White "Xu, Chang(Cq)"]
[Black "Balabayeva, Xeniya"]
[Result "0-1"]
[TimeControl "100+30+30sec/move"]
[WhiteTitle "-"]
[BlackTitle "-"]
[WhiteFideId "8641757"]
[BlackFideId "13719688"]
[WhiteElo "2125"]
[BlackElo "2302"]

1. e4 {[%clk 01:40:51]} {[%emt 00:00:07]} c6 {[%clk 01:40:53]} {[%emt
00:00:07]} 2. d4 {[%clk 01:41:13]} {[%emt 00:00:07]} d5 {[%clk 01:41:16]}
{[%emt 00:00:08]} 3. e5 {[%clk 01:41:35]} {[%emt 00:00:08]} Bf5 {[%clk
01:41:39]} {[%emt 00:00:07]} 4. h4 {[%clk 01:41:43]} {[%emt 00:00:22]} h5
{[%clk 01:41:54]} {[%emt 00:00:15]} 5. Bd3 {[%clk 01:42:04]} {[%emt 00:00:08]}
Bxd3 {[%clk 01:41:35]} {[%emt 00:00:50]} 6. Qxd3 {[%clk 01:42:26]} {[%emt
00:00:09]} Qa5+ {[%clk 01:41:42]} {[%emt 00:00:23]} 7. Nd2 {[%clk 01:42:46]}
{[%emt 00:00:09]} Qa6 {[%clk 01:34:40]} {[%emt 00:07:33]} 8. c4 {[%clk
01:43:04]} {[%emt 00:00:12]} e6 {[%clk 01:35:07]} {[%emt 00:00:03]} 9. Ngf3
{[%clk 01:39:44]} {[%emt 00:03:48]} Nd7 {[%emt 00:04:38]} 10. O-O {[%clk
01:38:41]} {[%emt 00:01:30]} Nh6 {[%clk 01:30:07]} {[%emt 00:01:25]} 11. b3
{[%clk 01:31:39]} {[%emt 00:07:33]} Nf5 {[%clk 01:26:51]} {[%emt 00:03:46]} 12.
Bb2 {[%clk 00:57:57]} {[%emt 00:34:11]} Be7 {[%clk 01:23:56]} {[%emt 00:03:25]}
13. g3 {[%clk 00:58:17]} {[%emt 00:00:10]} Rc8 {[%clk 01:03:42]} {[%emt
00:20:46]} 14. Qc2 {[%clk 00:53:40]} {[%emt 00:05:05]} b6 {[%clk 00:57:51]}
{[%emt 00:06:22]} 15. Rfc1 {[%clk 00:53:42]} {[%emt 00:00:26]} O-O {[%clk
00:55:29]} {[%emt 00:02:54]} 16. Qd1 {[%clk 00:52:48]} {[%emt 00:01:22]} Rfd8
{[%clk 00:41:05]} {[%emt 00:14:56]} 17. a4 {[%clk 00:46:06]} {[%emt 00:07:12]}
Nb8 {[%clk 00:29:32]} {[%emt 00:12:04]} 18. Qf1 {[%clk 00:23:01]} {[%emt
00:23:33]} Qb7 {[%clk 00:26:56]} {[%emt 00:03:07]} 19. Qe2 {[%clk 00:22:27]}
{[%emt 00:01:04]} c5 {[%clk 00:21:17]} {[%emt 00:06:09]} 20. cxd5 {[%clk
00:20:45]} {[%emt 00:02:12]} Qxd5 {[%clk 00:19:28]} {[%emt 00:02:18]} 21. Qe4
{[%clk 00:20:34]} {[%emt 00:00:41]} Na6 {[%clk 00:14:08]} {[%emt 00:05:51]} 22.
Rc4 {[%clk 00:18:36]} {[%emt 00:02:28]} Nb4 {[%clk 00:13:35]} {[%emt 00:01:03]}
23. Kg2 {[%clk 00:17:13]} {[%emt 00:01:52]} cxd4 {[%clk 00:10:36]} {[%emt
00:03:30]} 24. Qxd5 {[%clk 00:15:35]} {[%emt 00:02:08]} exd5 {[%clk 00:10:55]}
{[%emt 00:00:11]} 25. Rxc8 {[%clk 00:15:57]} {[%emt 00:00:07]} Rxc8 {[%clk
00:11:24]} {[%emt 00:00:02]} 26. Rd1 {[%clk 00:16:13]} {[%emt 00:00:14]} d3
{[%clk 00:09:30]} {[%emt 00:02:23]} 27. Nd4 {[%clk 00:10:25]} {[%emt 00:06:18]}
Nxd4 {[%clk 00:06:18]} {[%emt 00:03:43]} 28. Bxd4 {[%clk 00:10:50]} {[%emt
00:00:05]} Rc2 {[%clk 00:06:23]} {[%emt 00:00:25]} 29. Kf3 {[%clk 00:10:59]}
{[%emt 00:00:20]} Bc5 {[%clk 00:06:08]} {[%emt 00:00:46]} 30. Be3 {[%clk
00:09:11]} {[%emt 00:02:18]} Nc6 {[%clk 00:05:39]} {[%emt 00:00:59]} 31. Nf1
{[%clk 00:08:44]} {[%emt 00:00:57]} Nxe5+ {[%clk 00:05:50]} {[%emt 00:00:20]}
32. Kg2 {[%clk 00:08:45]} {[%emt 00:00:27]} Ng4 {[%clk 00:05:53]} {[%emt
00:00:27]} 33. Rxd3 {[%clk 00:08:31]} {[%emt 00:00:44]} Bxe3 {[%clk 00:06:15]}
{[%emt 00:00:09]} 34. Nxe3 {[%clk 00:08:46]} {[%emt 00:00:15]} Rxf2+ {[%clk
00:06:40]} {[%emt 00:00:05]} 35. Kg1 {[%clk 00:08:49]} {[%emt 00:00:27]} Rf3
{[%clk 00:07:04]} {[%emt 00:00:05]} 0-1

[Event "Masters Tournament (MTO)"]
[Site "Biel, Switzerland"]
[Date "2026.07.21"]
[Round "8.11"]
[White "Ashwath, Kaushik"]
[Black "Ragavan, Samarth Rajesh"]
[Result "1-0"]
[TimeControl "100+30+30sec/move"]
[WhiteTitle "-"]
[BlackTitle "-"]
[WhiteFideId "33387230"]
[BlackFideId "39918106"]
[WhiteElo "2278"]
[BlackElo "2106"]

1. d4 {[%clk 01:40:53]} {[%emt 00:00:07]} Nf6 {[%clk 01:40:54]} {[%emt
00:00:06]} 2. c4 {[%clk 01:41:18]} {[%emt 00:00:04]} e6 {[%clk 01:41:20]}
{[%emt 00:00:05]} 3. Nf3 {[%clk 01:41:38]} {[%emt 00:00:10]} b6 {[%clk
01:41:44]} {[%emt 00:00:07]} 4. e3 {[%clk 01:42:00]} {[%emt 00:00:06]} Bb7
{[%clk 01:42:02]} {[%emt 00:00:12]} 5. Bd3 {[%clk 01:42:22]} {[%emt 00:00:08]}
Be7 {[%clk 01:42:08]} {[%emt 00:00:25]} 6. O-O {[%clk 01:42:44]} {[%emt
00:00:07]} O-O {[%clk 01:42:35]} {[%emt 00:00:04]} 7. b3 {[%clk 01:43:03]}
{[%emt 00:00:11]} d5 {[%clk 01:42:54]} {[%emt 00:00:11]} 8. cxd5 {[%clk
01:43:20]} {[%emt 00:00:12]} exd5 {[%clk 01:42:43]} {[%emt 00:00:42]} 9. Ba3
{[%clk 01:43:43]} {[%emt 00:00:07]} Nbd7 {[%clk 01:42:28]} {[%emt 00:00:45]} 10.
Bxe7 {[%clk 01:44:01]} {[%emt 00:00:12]} Qxe7 {[%clk 01:42:54]} {[%emt
00:00:04]} 11. Nc3 {[%clk 01:43:54]} {[%emt 00:00:37]} c5 {[%clk 01:42:50]}
{[%emt 00:00:34]} 12. Rc1 {[%clk 01:43:54]} {[%emt 00:00:30]} Rad8 {[%clk
01:36:34]} {[%emt 00:06:46]} 13. Qe2 {[%clk 01:41:31]} {[%emt 00:02:53]} Ne4
{[%clk 01:32:54]} {[%emt 00:04:09]} 14. Rfd1 {[%clk 01:33:07]} {[%emt
00:08:54]} Qf6 {[%clk 01:17:40]} {[%emt 00:15:44]} 15. Ba6 {[%clk 01:26:56]}
{[%emt 00:06:42]} Ba8 {[%clk 01:14:10]} {[%emt 00:03:59]} 16. Na4 {[%clk
01:16:14]} {[%emt 00:11:13]} Rfe8 {[%clk 01:00:12]} {[%emt 00:14:28]} 17. Bb5
{[%clk 01:08:35]} {[%emt 00:08:08]} Bc6 {[%clk 00:59:56]} {[%emt 00:00:46]} 18.
dxc5 {[%clk 01:02:51]} {[%emt 00:06:14]} bxc5 {[%clk 00:58:11]} {[%emt
00:02:16]} 19. Nd4 {[%clk 00:50:02]} {[%emt 00:13:19]} Bxb5 {[%clk 00:46:24]}
{[%emt 00:12:17]} 20. Nxb5 {[%clk 00:47:27]} {[%emt 00:03:05]} d4 {[%clk
00:45:45]} {[%emt 00:01:09]} 21. Nc7 {[%clk 00:39:21]} {[%emt 00:08:35]} Re5
{[%clk 00:45:37]} {[%emt 00:00:39]} 22. f4 {[%clk 00:35:09]} {[%emt 00:04:41]}
Rf5 {[%clk 00:40:57]} {[%emt 00:05:11]} 23. g4 {[%clk 00:25:24]} {[%emt
00:10:14]} Qg6 {[%clk 00:40:38]} {[%emt 00:00:50]} 24. Qg2 {[%clk 00:22:57]}
{[%emt 00:02:56]} Rf6 {[%clk 00:34:19]} {[%emt 00:06:50]} 25. f5 {[%clk
00:20:10]} {[%emt 00:03:16]} Qg5 {[%clk 00:27:36]} {[%emt 00:07:13]} 26. Qxe4
{[%clk 00:20:10]} {[%emt 00:00:29]} Rh6 {[%clk 00:25:58]} {[%emt 00:02:09]} 27.
Qf4 {[%clk 00:14:53]} {[%emt 00:05:47]} Qxf4 {[%clk 00:22:59]} {[%emt
00:03:30]} 28. exf4 {[%clk 00:15:17]} {[%emt 00:00:05]} Rh4 {[%clk 00:23:22]}
{[%emt 00:00:07]} 29. h3 {[%clk 00:09:29]} {[%emt 00:06:19]} Rxh3 {[%clk
00:23:13]} {[%emt 00:00:38]} 30. Kg2 {[%clk 00:08:14]} {[%emt 00:01:45]} Re3
{[%clk 00:23:05]} {[%emt 00:00:39]} 31. Nxc5 {[%clk 00:06:48]} {[%emt
00:01:56]} Nf6 {[%clk 00:23:13]} {[%emt 00:00:21]} 32. Rc4 {[%clk 00:05:09]}
{[%emt 00:02:10]} Nxg4 {[%clk 00:21:31]} {[%emt 00:02:12]} 33. Rcxd4 {[%clk
00:05:25]} {[%emt 00:00:13]} Rxd4 {[%clk 00:21:51]} {[%emt 00:00:10]} 34. Rxd4
{[%clk 00:05:51]} {[%emt 00:00:05]} h5 {[%clk 00:22:17]} {[%emt 00:00:03]} 35.
Nd5 {[%clk 00:03:58]} {[%emt 00:02:23]} Re2+ {[%clk 00:22:14]} {[%emt
00:00:33]} 36. Kg3 {[%clk 00:04:22]} {[%emt 00:00:06]} Rxa2 {[%clk 00:22:34]}
{[%emt 00:00:10]} 37. Nd7 {[%clk 00:03:02]} {[%emt 00:01:50]} f6 {[%clk
00:21:50]} {[%emt 00:01:15]} 38. Re4 {[%clk 00:02:40]} {[%emt 00:00:52]} Rd2
{[%clk 00:19:50]} {[%emt 00:02:29]} 39. Re8+ {[%clk 00:03:06]} {[%emt
00:00:05]} Kh7 {[%clk 00:20:02]} {[%emt 00:00:18]} 40. Nf8+ {[%clk 00:03:31]}
{[%emt 00:00:05]} Kh6 {[%clk 00:20:17]} {[%emt 00:00:14]} 41. Ng6 {[%clk
00:02:48]} {[%emt 00:01:13]} Rd3+ {[%clk 00:20:41]} {[%emt 00:00:06]} 42. Kh4
{[%clk 00:03:06]} {[%emt 00:00:11]} 1-0

[Event "Masters Tournament (MTO)"]
[Site "Biel, Switzerland"]
[Date "2026.07.21"]
[Round "8.12"]
[White "Georgescu, Lena"]
[Black "Ling, Chenxuan"]
[Result "1/2-1/2"]
[TimeControl "100+30+30sec/move"]
[WhiteTitle "-"]
[BlackTitle "-"]
[WhiteFideId "1331973"]
[BlackFideId "30983118"]
[WhiteElo "2253"]
[BlackElo "2166"]

1. e4 {[%emt 02:51:16]} e6 {[%clk 01:40:52]} {[%emt 00:00:02]} 2. d4 {[%clk
01:41:23]} {[%emt 00:00:05]} d5 {[%clk 01:41:15]} {[%emt 00:00:07]} 3. Nc3
{[%clk 01:41:47]} {[%emt 00:00:04]} Bb4 {[%clk 01:41:39]} {[%emt 00:00:05]} 4.
Nge2 {[%clk 01:42:11]} {[%emt 00:00:07]} dxe4 {[%clk 01:41:53]} {[%emt
00:00:17]} 5. a3 {[%clk 01:42:35]} {[%emt 00:00:06]} Be7 {[%clk 01:40:58]}
{[%emt 00:01:25]} 6. Nxe4 {[%clk 01:42:55]} {[%emt 00:00:09]} Nf6 {[%clk
01:41:22]} {[%emt 00:00:06]} 7. Nxf6+ {[%clk 01:43:17]} {[%emt 00:00:08]} Bxf6
{[%clk 01:41:41]} {[%emt 00:00:12]} 8. Be3 {[%clk 01:43:42]} {[%emt 00:00:05]}
b6 {[%clk 01:39:49]} {[%emt 00:02:22]} 9. Qd2 {[%clk 01:41:01]} {[%emt
00:03:11]} Bb7 {[%clk 01:38:25]} {[%emt 00:01:54]} 10. O-O-O {[%clk 01:40:23]}
{[%emt 00:01:06]} Nc6 {[%clk 01:36:34]} {[%emt 00:02:22]} 11. Rg1 {[%clk
01:34:12]} {[%emt 00:06:41]} Qd7 {[%clk 01:33:15]} {[%emt 00:03:50]} 12. g4
{[%clk 01:32:12]} {[%emt 00:02:30]} g6 {[%clk 01:27:46]} {[%emt 00:05:59]} 13.
g5 {[%clk 01:28:28]} {[%emt 00:04:14]} Bg7 {[%clk 01:27:52]} {[%emt 00:00:24]}
14. h4 {[%clk 00:51:47]} {[%emt 00:37:10]} O-O-O {[%clk 01:24:32]} {[%emt
00:03:50]} 15. h5 {[%clk 00:45:37]} {[%emt 00:06:40]} Rhe8 {[%clk 01:20:53]}
{[%emt 00:04:09]} 16. Bg2 {[%clk 00:39:00]} {[%emt 00:07:07]} Ne7 {[%clk
01:19:44]} {[%emt 00:01:38]} 17. Bxb7+ {[%clk 00:39:06]} {[%emt 00:00:25]} Kxb7
{[%clk 01:20:12]} {[%emt 00:00:02]} 18. Qd3 {[%clk 00:29:58]} {[%emt 00:09:39]}
Nf5 {[%clk 01:12:36]} {[%emt 00:08:05]} 19. Ng3 {[%clk 00:25:56]} {[%emt
00:04:32]} Qd5 {[%clk 01:02:09]} {[%emt 00:10:57]} 20. c4 {[%clk 00:22:29]}
{[%emt 00:03:57]} Qf3 {[%clk 00:59:42]} {[%emt 00:02:57]} 21. Nxf5 {[%clk
00:17:10]} {[%emt 00:05:50]} exf5 {[%clk 00:56:52]} {[%emt 00:03:20]} 22. h6
{[%clk 00:16:58]} {[%emt 00:00:42]} Bf8 {[%clk 00:55:24]} {[%emt 00:01:58]} 23.
d5 {[%clk 00:15:12]} {[%emt 00:02:16]} Bd6 {[%clk 00:52:52]} {[%emt 00:03:02]}
24. Kb1 {[%clk 00:04:18]} {[%emt 00:11:23]} Re4 {[%clk 00:49:57]} {[%emt
00:03:25]} 25. c5 {[%clk 00:03:32]} {[%emt 00:01:16]} Bxc5 {[%clk 00:47:40]}
{[%emt 00:02:48]} 26. Rg3 {[%clk 00:03:37]} {[%emt 00:00:25]} Qxg3 {[%clk
00:45:51]} {[%emt 00:02:18]} 27. fxg3 {[%clk 00:04:02]} {[%emt 00:00:06]} Rxe3
{[%clk 00:45:31]} {[%emt 00:00:50]} 28. Qb5 {[%clk 00:04:21]} {[%emt 00:00:10]}
a6 {[%clk 00:43:50]} {[%emt 00:02:11]} 29. Qc6+ {[%clk 00:04:44]} {[%emt
00:00:07]} Kb8 {[%clk 00:43:18]} {[%emt 00:01:03]} 30. Qf6 {[%clk 00:04:18]}
{[%emt 00:00:55]} Rde8 {[%clk 00:41:31]} {[%emt 00:02:18]} 31. d6 {[%clk
00:03:24]} {[%emt 00:01:24]} Bxd6 {[%clk 00:40:57]} {[%emt 00:01:04]} 32. Rxd6
{[%clk 00:03:46]} {[%emt 00:00:07]} cxd6 {[%clk 00:41:21]} {[%emt 00:00:07]} 33.
Qxd6+ {[%clk 00:03:57]} {[%emt 00:00:19]} Kb7 {[%clk 00:41:30]} {[%emt
00:00:20]} 34. Qd7+ {[%clk 00:04:10]} {[%emt 00:00:18]} Kb8 {[%clk 00:41:55]}
{[%emt 00:00:05]} 35. Qd6+ {[%clk 00:04:29]} {[%emt 00:00:10]} Kb7 {[%clk
00:41:19]} {[%emt 00:01:06]} 36. Qd7+ {[%clk 00:04:48]} {[%emt 00:00:12]} Kb8
{[%clk 00:41:40]} {[%emt 00:00:09]} 37. Qxf7 {[%clk 00:04:38]} {[%emt
00:00:40]} R8e7 {[%clk 00:41:15]} {[%emt 00:00:55]} 38. Qd5 {[%clk 00:04:26]}
{[%emt 00:00:42]} Ka7 {[%clk 00:41:23]} {[%emt 00:00:21]} 39. Qd6 {[%clk
00:03:59]} {[%emt 00:00:57]} R3e4 {[%clk 00:40:53]} {[%emt 00:01:00]} 40. Ka2
{[%emt 00:00:54]} Rb7 {[%clk 00:40:54]} 41. Qd5 {[%clk 00:02:33]} {[%emt
00:02:00]} Rg4 {[%clk 00:39:38]} {[%emt 00:01:46]} 42. Qd6 {[%clk 00:23:29]}
{[%emt 00:09:34]} Rxg5 {[%clk 01:08:48]} {[%emt 00:01:21]} 43. Qf4 {[%clk
00:16:39]} {[%emt 00:07:19]} Rg4 {[%clk 01:09:01]} {[%emt 00:00:17]} 44. Qe5
{[%clk 00:16:44]} {[%emt 00:00:26]} Re4 {[%clk 01:08:49]} {[%emt 00:00:42]} 45.
Qd5 {[%clk 00:16:13]} {[%emt 00:00:59]} Rbe7 {[%clk 01:08:42]} {[%emt
00:00:36]} 46. Qd6 {[%clk 00:14:41]} {[%emt 00:02:04]} R4e6 {[%clk 01:08:15]}
{[%emt 00:00:57]} 47. Qd5 {[%clk 00:14:13]} {[%emt 00:00:58]} Rf6 {[%clk
01:08:00]} {[%emt 00:00:45]} 48. Qd4 {[%clk 00:13:19]} {[%emt 00:01:25]} Rff7
{[%clk 01:07:50]} {[%emt 00:00:40]} 49. Qd2 {[%clk 00:07:25]} {[%emt 00:06:24]}
f4 {[%clk 01:07:10]} {[%emt 00:01:10]} 50. gxf4 {[%clk 00:07:52]} {[%emt
00:00:03]} Re4 {[%clk 01:07:34]} {[%emt 00:00:06]} 51. Qd8 {[%clk 00:06:20]}
{[%emt 00:02:02]} Rexf4 {[%clk 01:07:39]} {[%emt 00:00:25]} 52. Qg8 {[%clk
00:05:39]} {[%emt 00:01:10]} Rb7 {[%clk 01:07:43]} {[%emt 00:00:27]} 53. Qd8
{[%clk 00:04:25]} {[%emt 00:01:44]} Rf5 {[%emt 00:02:59]} 54. b4 {[%clk
00:02:42]} a5 {[%clk 01:05:56]} {[%emt 00:02:01]} 55. bxa5 {[%clk 00:02:19]}
{[%emt 00:00:53]} Rxa5 {[%clk 01:06:02]} {[%emt 00:00:24]} 56. Qf6 {[%clk
00:01:34]} {[%emt 00:01:14]} Rc7 {[%clk 01:06:09]} {[%emt 00:00:23]} 57. Kb3
{[%clk 00:01:34]} {[%emt 00:00:30]} Rac5 {[%clk 01:05:53]} {[%emt 00:00:46]} 58.
a4 {[%clk 00:01:25]} {[%emt 00:00:39]} Ka6 {[%clk 01:05:26]} {[%emt 00:00:58]}
59. Qf8 {[%clk 00:01:03]} {[%emt 00:00:52]} Ka7 {[%clk 01:05:07]} {[%emt
00:00:49]} 60. Qd8 {[%clk 00:00:46]} {[%emt 00:00:46]} g5 {[%clk 01:04:47]}
{[%emt 00:00:50]} 61. Qd4 {[%clk 00:00:38]} {[%emt 00:00:38]} Rc3+ {[%clk
01:04:18]} {[%emt 00:00:59]} 62. Kb2 {[%clk 00:01:06]} {[%emt 00:00:03]} R3c4
{[%clk 01:03:56]} {[%emt 00:00:51]} 63. Qd6 {[%clk 00:01:16]} {[%emt 00:00:20]}
g4 {[%clk 01:04:06]} {[%emt 00:00:21]} 64. a5 {[%clk 00:00:48]} {[%emt
00:00:58]} bxa5 {[%clk 01:04:19]} {[%emt 00:00:17]} 65. Qe5 {[%clk 00:00:51]}
{[%emt 00:00:26]} a4 {[%clk 01:03:20]} {[%emt 00:01:29]} 66. Qa5+ {[%clk
00:00:46]} {[%emt 00:00:36]} Kb8 {[%clk 01:03:42]} {[%emt 00:00:07]} 67. Qe5
{[%clk 00:00:41]} {[%emt 00:00:35]} R4c6 {[%clk 01:02:48]} {[%emt 00:01:21]} 68.
Ka3 {[%clk 00:00:44]} {[%emt 00:00:31]} Rc3+ {[%clk 01:00:24]} {[%emt
00:02:54]} 69. Kxa4 {[%clk 00:00:33]} {[%emt 00:00:41]} R3c6 {[%clk 00:58:33]}
{[%emt 00:02:20]} 70. Qb5+ {[%clk 00:00:38]} {[%emt 00:00:26]} Ka7 {[%clk
00:58:20]} {[%emt 00:00:43]} 71. Qe2 {[%clk 00:00:34]} {[%emt 00:00:34]} Rg6
{[%clk 00:58:02]} {[%emt 00:00:47]} 72. Qe3+ {[%clk 00:00:47]} {[%emt
00:00:17]} Kb7 {[%clk 00:58:01]} {[%emt 00:00:31]} 73. Qe4+ {[%clk 00:00:56]}
{[%emt 00:00:21]} Kb6 {[%clk 00:56:32]} {[%emt 00:01:59]} 74. Qd4+ {[%clk
00:00:47]} {[%emt 00:00:38]} Kc6 {[%clk 00:56:40]} {[%emt 00:00:23]} 75. Qe4+
{[%clk 00:00:56]} {[%emt 00:00:22]} Kd7 {[%clk 00:56:26]} {[%emt 00:00:43]} 76.
Qd5+ {[%clk 00:00:56]} {[%emt 00:00:30]} Ke8 {[%clk 00:55:47]} {[%emt
00:01:08]} 77. Qe5+ {[%clk 00:01:11]} {[%emt 00:00:17]} Re7 {[%clk 00:56:09]}
{[%emt 00:00:08]} 78. Qh8+ {[%clk 00:01:22]} {[%emt 00:00:18]} Kd7 {[%clk
00:56:34]} {[%emt 00:00:05]} 79. Qd4+ {[%clk 00:01:44]} {[%emt 00:00:09]} Ke6
{[%clk 00:56:52]} {[%emt 00:00:12]} 80. Qe4+ {[%clk 00:01:30]} {[%emt
00:00:43]} Kf7 {[%clk 00:57:06]} {[%emt 00:00:16]} 81. Qf5+ {[%clk 00:01:30]}
{[%emt 00:00:31]} Kg8 {[%clk 00:57:33]} {[%emt 00:00:03]} 1/2-1/2

[Event "Masters Tournament (MTO)"]
[Site "Biel, Switzerland"]
[Date "2026.07.21"]
[Round "8.13"]
[White "Dauth, Benjamin"]
[Black "Ganguly, Surya Shekhar"]
[Result "0-1"]
[TimeControl "100+30+30sec/move"]
[WhiteTitle "-"]
[BlackTitle "-"]
[WhiteFideId "4688104"]
[BlackFideId "5002150"]
[WhiteElo "2247"]
[BlackElo "2578"]

1. e4 {[%clk 01:40:45]} {[%emt 00:00:14]} c6 {[%clk 01:40:20]} {[%emt
00:00:40]} 2. d4 {[%clk 01:40:57]} {[%emt 00:00:18]} d5 {[%clk 01:40:44]}
{[%emt 00:00:06]} 3. exd5 {[%clk 01:41:23]} {[%emt 00:00:04]} cxd5 {[%clk
01:41:04]} {[%emt 00:00:09]} 4. Bd3 {[%clk 01:41:50]} {[%emt 00:00:04]} Nc6
{[%clk 01:40:36]} {[%emt 00:00:58]} 5. c3 {[%clk 01:42:15]} {[%emt 00:00:05]}
Nf6 {[%clk 01:41:01]} {[%emt 00:00:05]} 6. Ne2 {[%clk 01:42:33]} {[%emt
00:00:13]} e5 {[%clk 01:40:54]} {[%emt 00:00:37]} 7. dxe5 {[%clk 01:42:53]}
{[%emt 00:00:10]} Nxe5 {[%clk 01:41:18]} {[%emt 00:00:05]} 8. Bf4 {[%clk
01:43:17]} {[%emt 00:00:06]} Bd6 {[%clk 01:41:28]} {[%emt 00:00:19]} 9. O-O
{[%clk 01:35:24]} {[%emt 00:08:24]} O-O {[%clk 01:41:37]} {[%emt 00:00:21]} 10.
Bxe5 {[%clk 01:35:01]} {[%emt 00:00:53]} Bxe5 {[%clk 01:42:00]} {[%emt
00:00:07]} 11. Nd2 {[%clk 01:34:43]} {[%emt 00:00:48]} Bc7 {[%clk 01:41:05]}
{[%emt 00:01:24]} 12. h3 {[%clk 01:33:57]} {[%emt 00:01:17]} Qd6 {[%clk
01:33:49]} {[%emt 00:07:47]} 13. Ng3 {[%clk 01:33:23]} {[%emt 00:01:04]} Bd7
{[%clk 01:28:35]} {[%emt 00:05:45]} 14. Re1 {[%clk 01:33:06]} {[%emt 00:00:45]}
Rfe8 {[%clk 01:27:42]} {[%emt 00:01:23]} 15. Ndf1 {[%clk 01:32:03]} {[%emt
00:01:34]} Rxe1 {[%clk 01:14:57]} {[%emt 00:13:14]} 16. Qxe1 {[%clk 01:30:40]}
{[%emt 00:01:53]} Re8 {[%clk 01:14:58]} {[%emt 00:00:30]} 17. Qd2 {[%clk
01:28:46]} {[%emt 00:02:23]} Qe5 {[%clk 01:05:29]} {[%emt 00:09:59]} 18. Rd1
{[%clk 01:24:15]} {[%emt 00:05:01]} Bb6 {[%clk 01:04:52]} {[%emt 00:01:07]} 19.
Be2 {[%clk 01:17:00]} {[%emt 00:07:45]} h5 {[%clk 01:03:52]} {[%emt 00:01:29]}
20. Bf3 {[%clk 01:17:02]} {[%emt 00:00:29]} Bb5 {[%clk 01:01:13]} {[%emt
00:03:08]} 21. Qc2 {[%clk 01:12:56]} {[%emt 00:04:37]} g6 {[%clk 00:59:43]}
{[%emt 00:01:59]} 22. a4 {[%clk 01:10:09]} {[%emt 00:03:19]} h4 {[%clk
00:59:48]} {[%emt 00:00:25]} 23. Nh1 {[%clk 01:03:18]} {[%emt 00:07:20]} Bxf1
{[%clk 00:59:56]} {[%emt 00:00:22]} 24. Rxf1 {[%clk 01:03:42]} {[%emt
00:00:07]} Ne4 {[%clk 00:59:36]} {[%emt 00:00:47]} 25. Bxe4 {[%clk 00:59:19]}
{[%emt 00:04:55]} dxe4 {[%clk 00:59:57]} {[%emt 00:00:09]} 26. Qe2 {[%clk
00:59:36]} {[%emt 00:00:13]} e3 {[%clk 00:59:23]} {[%emt 00:01:03]} 27. Qd3
{[%clk 00:49:13]} {[%emt 00:10:54]} Rd8 {[%clk 00:58:58]} {[%emt 00:00:55]} 0-1